[Event "Titled Tuesday Blitz June 6 Late 2023"]
[White "Liu, Casper"]
[Black "Sanchez, Robert"]
[WhiteFideId "1454153"]
[BlackFideId "2034360"]
[WhiteElo "2221"]
[BlackElo "1845"]
[Result "0-1"]
[Round "1"]
[TimeControl "180+2"]
[Date "2023.06.07"]
[WhiteClock "0:01:58"]
[BlackClock "0:01:29"]
[Board "184"]

1. e4 {[%clk 0:02:57]}  e6 {[%clk 0:03:00]} 2. Nf3 {[%clk 0:02:57]}  d5 {[%clk 0:02:58]} 3. e5 {[%clk 0:02:57]}  c5 {[%clk 0:02:58]} 4. c3 {[%clk 0:02:58]}  Nc6 {[%clk 0:02:56]} 5. d4 {[%clk 0:02:58]}  Bd7 {[%clk 0:02:57]} 6. Bd3 {[%clk 0:02:58]}  Qb6 {[%clk 0:02:56]} 7. dxc5 {[%clk 0:02:58]}  Bxc5 {[%clk 0:02:54]} 8. b4 {[%clk 0:02:59]}  Bxf2+ {[%clk 0:02:53]} 9. Ke2 {[%clk 0:02:59]}  f6 {[%clk 0:02:26]} 10. Rf1 {[%clk 0:02:27]}  fxe5 {[%clk 0:02:24]} 11. Rxf2 {[%clk 0:02:27]}  e4 {[%clk 0:02:25]} 12. Be3 {[%clk 0:02:28]}  exd3+ {[%clk 0:02:13]} 13. Qxd3 {[%clk 0:02:27]}  Qc7 {[%clk 0:02:11]} 14. Na3 {[%clk 0:02:25]}  a6 {[%clk 0:02:07]} 15. b5 {[%clk 0:02:25]}  Ne5 {[%clk 0:01:55]} 16. Qd4 {[%clk 0:02:14]}  Ng6 {[%clk 0:01:47]} 17. b6 {[%clk 0:02:05]}  Qd6 {[%clk 0:01:40]} 18. Qxg7 {[%clk 0:02:03]}  Qxa3 {[%clk 0:01:30]} 19. Qxh8 {[%clk 0:01:58]}  Nxh8 {[%clk 0:01:29]} 0-1


[Site "https://www.chess.com"]

[Event "Titled Tuesday Blitz June 6 Late 2023"]
[White "Nihal Sarin"]
[Black "Popilski, Gil"]
[WhiteFideId "25092340"]
[BlackFideId "2809060"]
[WhiteElo "2689"]
[BlackElo "2537"]
[Result "1-0"]
[Round "2"]
[TimeControl "180+2"]
[Date "2023.06.07"]
[WhiteClock "0:00:05"]
[BlackClock "0:00:05"]
[Board "1"]

1. e4 {[%clk 0:03:00]}  c5 {[%clk 0:02:59]} 2. Nf3 {[%clk 0:02:59]}  g6 {[%clk 0:02:59]} 3. g3 {[%clk 0:02:51]}  Bg7 {[%clk 0:02:59]} 4. Bg2 {[%clk 0:02:52]}  Nc6 {[%clk 0:02:59]} 5. O-O {[%clk 0:02:52]}  d6 {[%clk 0:02:57]} 6. c3 {[%clk 0:02:53]}  e5 {[%clk 0:02:56]} 7. d3 {[%clk 0:02:52]}  Nge7 {[%clk 0:02:56]} 8. a3 {[%clk 0:02:53]}  O-O {[%clk 0:02:46]} 9. Re1 {[%clk 0:02:41]}  f5 {[%clk 0:02:30]} 10. b4 {[%clk 0:02:40]}  f4 {[%clk 0:02:29]} 11. Bb2 {[%clk 0:02:34]}  h6 {[%clk 0:02:13]} 12. d4 {[%clk 0:02:25]}  g5 {[%clk 0:01:13]} 13. d5 {[%clk 0:02:06]}  Nb8 {[%clk 0:01:09]} 14. bxc5 {[%clk 0:02:03]}  dxc5 {[%clk 0:01:07]} 15. c4 {[%clk 0:01:42]}  Ng6 {[%clk 0:01:02]} 16. Nc3 {[%clk 0:01:42]}  g4 {[%clk 0:01:00]} 17. Nd2 {[%clk 0:01:43]}  f3 {[%clk 0:00:54]} 18. Bf1 {[%clk 0:01:42]}  Nd7 {[%clk 0:00:48]} 19. Nb3 {[%clk 0:01:36]}  b6 {[%clk 0:00:45]} 20. a4 {[%clk 0:01:35]}  a5 {[%clk 0:00:45]} 21. Nb5 {[%clk 0:01:32]}  Nf6 {[%clk 0:00:43]} 22. d6 {[%clk 0:01:30]}  Bb7 {[%clk 0:00:35]} 23. Nc7 {[%clk 0:01:28]}  Qd7 {[%clk 0:00:32]} 24. Nxa8 {[%clk 0:01:27]}  Bxa8 {[%clk 0:00:32]} 25. Ra3 {[%clk 0:01:22]}  Nxe4 {[%clk 0:00:18]} 26. Qc2 {[%clk 0:01:09]}  Qf5 {[%clk 0:00:10]} 27. d7 {[%clk 0:00:29]}  Rd8 {[%clk 0:00:09]} 28. Bd3 {[%clk 0:00:25]}  Qh5 {[%clk 0:00:09]} 29. Bf1 {[%clk 0:00:13]}  Ng5 {[%clk 0:00:07]} 30. Rd1 {[%clk 0:00:06]}  Be4 {[%clk 0:00:04]} 31. Qd2 {[%clk 0:00:05]}  Nh3+ {[%clk 0:00:04]} 32. Kh1 {[%clk 0:00:05]}  Bf6 {[%clk 0:00:05]} 33. Qe1 {[%clk 0:00:04]}  Bc6 {[%clk 0:00:04]} 34. Nd2 {[%clk 0:00:04]}  Bg5 {[%clk 0:00:04]} 35. Rd3 {[%clk 0:00:03]}  e4 {[%clk 0:00:04]} 36. Rd6 {[%clk 0:00:03]}  Nxf2+ {[%clk 0:00:04]} 37. Qxf2 {[%clk 0:00:02]}  e3 {[%clk 0:00:05]} 38. Rxc6 {[%clk 0:00:02]}  exf2 {[%clk 0:00:05]} 39. Ne4 {[%clk 0:00:03]}  Bf4 {[%clk 0:00:05]} 40. Nf6+ {[%clk 0:00:03]}  Kf7 {[%clk 0:00:05]} 41. Nxh5 {[%clk 0:00:04]}  Bxg3 {[%clk 0:00:05]} 42. Rf6+ {[%clk 0:00:04]}  Ke7 {[%clk 0:00:05]} 43. Rxg6 {[%clk 0:00:05]} 1-0


[Site "https://www.chess.com"]

[Event "Titled Tuesday Blitz June 6 Late 2023"]
[White "Lopez Mulet, Inigo"]
[Black "Nepomniachtchi, Ian"]
[WhiteFideId "22235620"]
[BlackFideId "4168119"]
[WhiteElo "2302"]
[BlackElo "2781"]
[Result "1/2-1/2"]
[Round "2"]
[TimeControl "180+2"]
[Date "2023.06.07"]
[WhiteClock "0:00:57"]
[BlackClock "0:00:18"]
[Board "2"]

1. Nf3 {[%clk 0:02:52]}  b6 {[%clk 0:02:59]} 2. d4 {[%clk 0:02:52]}  Bb7 {[%clk 0:03:00]} 3. e3 {[%clk 0:02:52]}  g6 {[%clk 0:02:59]} 4. Bd3 {[%clk 0:02:52]}  Nf6 {[%clk 0:02:58]} 5. Nbd2 {[%clk 0:02:53]}  Bg7 {[%clk 0:02:58]} 6. b3 {[%clk 0:02:53]}  O-O {[%clk 0:02:58]} 7. Bb2 {[%clk 0:02:54]}  d6 {[%clk 0:02:58]} 8. a4 {[%clk 0:02:55]}  a6 {[%clk 0:02:58]} 9. a5 {[%clk 0:02:55]}  b5 {[%clk 0:02:58]} 10. c4 {[%clk 0:02:55]}  bxc4 {[%clk 0:02:28]} 11. bxc4 {[%clk 0:02:56]}  e6 {[%clk 0:02:28]} 12. O-O {[%clk 0:02:56]}  Nc6 {[%clk 0:02:28]} 13. Bc3 {[%clk 0:02:56]}  Rb8 {[%clk 0:02:28]} 14. Rb1 {[%clk 0:02:56]}  Nd7 {[%clk 0:02:20]} 15. Qc2 {[%clk 0:02:55]}  Qe7 {[%clk 0:02:16]} 16. Rb2 {[%clk 0:02:46]}  Ba8 {[%clk 0:02:15]} 17. Rfb1 {[%clk 0:02:46]}  Rxb2 {[%clk 0:02:14]} 18. Rxb2 {[%clk 0:02:47]}  f5 {[%clk 0:02:10]} 19. e4 {[%clk 0:02:42]}  e5 {[%clk 0:02:04]} 20. d5 {[%clk 0:02:31]}  fxe4 {[%clk 0:02:04]} 21. Nxe4 {[%clk 0:02:27]}  Nd4 {[%clk 0:02:04]} 22. Bxd4 {[%clk 0:02:25]}  exd4 {[%clk 0:02:05]} 23. Nfg5 {[%clk 0:02:25]}  Nc5 {[%clk 0:01:55]} 24. Rb1 {[%clk 0:02:11]}  Nxe4 {[%clk 0:01:44]} 25. Nxe4 {[%clk 0:02:12]}  c6 {[%clk 0:01:44]} 26. dxc6 {[%clk 0:01:59]}  Bxc6 {[%clk 0:01:45]} 27. f3 {[%clk 0:02:00]}  Bh6 {[%clk 0:01:44]} 28. Rb6 {[%clk 0:01:49]}  Be3+ {[%clk 0:01:43]} 29. Kh1 {[%clk 0:01:46]}  Qh4 {[%clk 0:01:35]} 30. g3 {[%clk 0:01:34]}  Qh5 {[%clk 0:01:23]} 31. Qg2 {[%clk 0:01:30]}  Bxe4 {[%clk 0:01:18]} 32. Bxe4 {[%clk 0:01:29]}  Qxa5 {[%clk 0:01:19]} 33. Rb1 {[%clk 0:01:26]}  Qc3 {[%clk 0:01:17]} 34. Qh3 {[%clk 0:01:15]}  Qxc4 {[%clk 0:01:06]} 35. Qd7 {[%clk 0:01:10]}  Qf7 {[%clk 0:00:20]} 36. Qxd6 {[%clk 0:01:10]}  Qf6 {[%clk 0:00:20]} 37. Qd5+ {[%clk 0:01:04]}  Kh8 {[%clk 0:00:20]} 38. Kg2 {[%clk 0:01:04]}  Bh6 {[%clk 0:00:20]} 39. Rb7 {[%clk 0:01:03]}  Bg7 {[%clk 0:00:21]} 40. Qd7 {[%clk 0:01:02]}  Rd8 {[%clk 0:00:21]} 41. Qc7 {[%clk 0:01:01]}  d3 {[%clk 0:00:19]} 42. Rb8 {[%clk 0:01:01]}  Rxb8 {[%clk 0:00:19]} 43. Qxb8+ {[%clk 0:01:02]}  Qf8 {[%clk 0:00:19]} 44. Qxf8+ {[%clk 0:01:01]}  Bxf8 {[%clk 0:00:20]} 45. Bxd3 {[%clk 0:01:02]}  a5 {[%clk 0:00:21]} 46. Bb5 {[%clk 0:01:03]}  Kg7 {[%clk 0:00:22]} 47. Kf2 {[%clk 0:01:03]}  Kf6 {[%clk 0:00:22]} 48. h3 {[%clk 0:01:03]}  Ke5 {[%clk 0:00:23]} 49. Ke3 {[%clk 0:01:04]}  Bc5+ {[%clk 0:00:22]} 50. Kd3 {[%clk 0:01:04]}  Bf2 {[%clk 0:00:23]} 51. g4 {[%clk 0:01:02]}  Kf4 {[%clk 0:00:23]} 52. Ke2 {[%clk 0:01:02]}  Bc5 {[%clk 0:00:23]} 53. h4 {[%clk 0:00:59]}  h6 {[%clk 0:00:18]} 54. Be8 {[%clk 0:00:57]}  g5 {[%clk 0:00:16]} 55. hxg5 {[%clk 0:00:57]}  hxg5 {[%clk 0:00:17]} 56. Bc6 {[%clk 0:00:57]}  Ke5 {[%clk 0:00:17]} 57. Kd3 {[%clk 0:00:58]}  Kd6 {[%clk 0:00:17]} 58. Bb5 {[%clk 0:00:57]}  Bf2 {[%clk 0:00:16]} 59. Kc4 {[%clk 0:00:57]}  Bg3 {[%clk 0:00:17]} 60. Kb3 {[%clk 0:00:56]}  Bf4 {[%clk 0:00:18]} 61. Ka4 {[%clk 0:00:57]}  Bd2 {[%clk 0:00:18]} 62. Bd3 {[%clk 0:00:57]} 1/2-1/2


[Site "https://www.chess.com"]

[Event "Titled Tuesday Blitz June 6 Late 2023"]
[White "Gomez Ledo, Roberto Carlos"]
[Black "Sarana, Alexey"]
[WhiteFideId "3507076"]
[BlackFideId "24133795"]
[WhiteElo "2378"]
[BlackElo "2714"]
[Result "0-1"]
[Round "2"]
[TimeControl "180+2"]
[Date "2023.06.07"]
[WhiteClock "0:00:01"]
[BlackClock "0:01:00"]
[Board "6"]

1. d4 {[%clk 0:03:00]}  Nf6 {[%clk 0:02:59]} 2. Bf4 {[%clk 0:03:00]}  d5 {[%clk 0:02:57]} 3. e3 {[%clk 0:02:59]}  c5 {[%clk 0:02:58]} 4. c3 {[%clk 0:02:59]}  Nc6 {[%clk 0:02:56]} 5. Nd2 {[%clk 0:02:58]}  e6 {[%clk 0:02:52]} 6. Ngf3 {[%clk 0:02:58]}  Bd6 {[%clk 0:02:53]} 7. Bg3 {[%clk 0:02:57]}  O-O {[%clk 0:02:52]} 8. Bd3 {[%clk 0:02:57]}  Qe7 {[%clk 0:02:50]} 9. Ne5 {[%clk 0:02:56]}  Nd7 {[%clk 0:02:50]} 10. Nxd7 {[%clk 0:02:55]}  Qxd7 {[%clk 0:02:51]} 11. Bxd6 {[%clk 0:02:49]}  Qxd6 {[%clk 0:02:52]} 12. dxc5 {[%clk 0:02:49]}  Qe7 {[%clk 0:02:35]} 13. b4 {[%clk 0:02:44]}  Rd8 {[%clk 0:02:34]} 14. O-O {[%clk 0:02:39]}  e5 {[%clk 0:02:34]} 15. Bb5 {[%clk 0:02:31]}  Bf5 {[%clk 0:02:31]} 16. Nf3 {[%clk 0:02:22]}  Qf6 {[%clk 0:02:30]} 17. a3 {[%clk 0:02:05]}  Bg4 {[%clk 0:02:29]} 18. Be2 {[%clk 0:02:04]}  Bxf3 {[%clk 0:02:25]} 19. Bxf3 {[%clk 0:02:00]}  e4 {[%clk 0:02:26]} 20. Be2 {[%clk 0:01:58]}  Qxc3 {[%clk 0:02:26]} 21. Qc1 {[%clk 0:01:54]}  Qf6 {[%clk 0:02:25]} 22. Rd1 {[%clk 0:01:47]}  d4 {[%clk 0:02:25]} 23. b5 {[%clk 0:01:42]}  d3 {[%clk 0:02:04]} 24. Bxd3 {[%clk 0:01:24]}  Rxd3 {[%clk 0:02:00]} 25. bxc6 {[%clk 0:01:21]}  bxc6 {[%clk 0:02:00]} 26. Rb1 {[%clk 0:01:12]}  Rad8 {[%clk 0:01:59]} 27. Rxd3 {[%clk 0:01:04]}  exd3 {[%clk 0:02:00]} 28. Qd2 {[%clk 0:01:03]}  h5 {[%clk 0:02:00]} 29. h3 {[%clk 0:01:01]}  Qe6 {[%clk 0:01:56]} 30. Rb4 {[%clk 0:00:58]}  Qe5 {[%clk 0:01:53]} 31. Rb3 {[%clk 0:00:51]}  Qa1+ {[%clk 0:01:46]} 32. Kh2 {[%clk 0:00:50]}  Qf1 {[%clk 0:01:47]} 33. Rb2 {[%clk 0:00:37]}  Rd5 {[%clk 0:01:37]} 34. Qb4 {[%clk 0:00:34]}  Qc1 {[%clk 0:01:30]} 35. Qd2 {[%clk 0:00:28]}  Qxc5 {[%clk 0:01:30]} 36. e4 {[%clk 0:00:20]}  Rd4 {[%clk 0:01:28]} 37. Qf4 {[%clk 0:00:16]}  Qe7 {[%clk 0:01:18]} 38. Rb8+ {[%clk 0:00:15]}  Kh7 {[%clk 0:01:18]} 39. Qf5+ {[%clk 0:00:15]}  g6 {[%clk 0:01:18]} 40. Qc8 {[%clk 0:00:15]}  Qe5+ {[%clk 0:01:17]} 41. g3 {[%clk 0:00:15]}  Qg7 {[%clk 0:01:09]} 42. e5 {[%clk 0:00:05]}  d2 {[%clk 0:01:09]} 43. e6 {[%clk 0:00:05]}  fxe6 {[%clk 0:00:59]} 44. Rb7 {[%clk 0:00:05]}  d1=Q {[%clk 0:00:58]} 45. Rxg7+ {[%clk 0:00:04]}  Kxg7 {[%clk 0:00:59]} 46. Qxe6 {[%clk 0:00:01]}  Rd7 {[%clk 0:01:00]} 0-1


[Site "https://www.chess.com"]

[Event "Titled Tuesday Blitz June 6 Late 2023"]
[White "Eugene, Floryan"]
[Black "Bluebaum, Matthias"]
[WhiteFideId "20694784"]
[BlackFideId "24651516"]
[WhiteElo "2369"]
[BlackElo "2639"]
[Result "1/2-1/2"]
[Round "2"]
[TimeControl "180+2"]
[Date "2023.06.07"]
[WhiteClock "0:00:08"]
[BlackClock "0:00:15"]
[Board "7"]

1. d4 {[%clk 0:03:00]}  d5 {[%clk 0:03:00]} 2. c4 {[%clk 0:02:59]}  e6 {[%clk 0:03:00]} 3. Nf3 {[%clk 0:02:58]}  Nf6 {[%clk 0:03:01]} 4. Nc3 {[%clk 0:02:57]}  Bb4 {[%clk 0:03:01]} 5. cxd5 {[%clk 0:02:54]}  exd5 {[%clk 0:03:02]} 6. Bg5 {[%clk 0:02:52]}  h6 {[%clk 0:03:02]} 7. Bh4 {[%clk 0:02:50]}  O-O {[%clk 0:03:02]} 8. e3 {[%clk 0:02:49]}  Bf5 {[%clk 0:03:02]} 9. Qb3 {[%clk 0:02:47]}  Bxc3+ {[%clk 0:03:01]} 10. bxc3 {[%clk 0:02:45]}  Nbd7 {[%clk 0:03:00]} 11. Be2 {[%clk 0:02:42]}  c5 {[%clk 0:03:00]} 12. O-O {[%clk 0:02:40]}  c4 {[%clk 0:03:00]} 13. Qxb7 {[%clk 0:02:32]}  Qb6 {[%clk 0:03:00]} 14. Qxb6 {[%clk 0:02:28]}  axb6 {[%clk 0:03:01]} 15. Nd2 {[%clk 0:02:17]}  Ra3 {[%clk 0:02:57]} 16. e4 {[%clk 0:01:48]}  Bxe4 {[%clk 0:02:31]} 17. Nxe4 {[%clk 0:01:47]}  Nxe4 {[%clk 0:02:31]} 18. Be7 {[%clk 0:01:46]}  Nxc3 {[%clk 0:02:32]} 19. Bf3 {[%clk 0:01:44]}  Rfa8 {[%clk 0:02:31]} 20. Bxa3 {[%clk 0:01:42]}  Rxa3 {[%clk 0:02:32]} 21. Rfc1 {[%clk 0:01:23]}  b5 {[%clk 0:02:31]} 22. Rc2 {[%clk 0:01:18]}  b4 {[%clk 0:02:29]} 23. Re1 {[%clk 0:00:54]}  Nf6 {[%clk 0:02:26]} 24. Re3 {[%clk 0:00:49]}  b3 {[%clk 0:02:03]} 25. Rexc3 {[%clk 0:00:41]}  bxc2 {[%clk 0:01:57]} 26. Rxc2 {[%clk 0:00:42]}  g5 {[%clk 0:01:55]} 27. h3 {[%clk 0:00:40]}  Kg7 {[%clk 0:01:55]} 28. Kf1 {[%clk 0:00:37]}  h5 {[%clk 0:01:55]} 29. Be2 {[%clk 0:00:23]}  Kg6 {[%clk 0:01:54]} 30. g3 {[%clk 0:00:22]}  Kf5 {[%clk 0:01:52]} 31. Bxh5 {[%clk 0:00:20]}  Ke4 {[%clk 0:01:50]} 32. Bxf7 {[%clk 0:00:19]}  Kxd4 {[%clk 0:01:49]} 33. Bg6 {[%clk 0:00:19]}  Kc5 {[%clk 0:01:46]} 34. Bf7 {[%clk 0:00:18]}  Ra7 {[%clk 0:01:44]} 35. Be6 {[%clk 0:00:19]}  Re7 {[%clk 0:01:42]} 36. Bf5 {[%clk 0:00:19]}  d4 {[%clk 0:01:42]} 37. h4 {[%clk 0:00:20]}  gxh4 {[%clk 0:01:42]} 38. gxh4 {[%clk 0:00:21]}  Kb4 {[%clk 0:01:41]} 39. Rd2 {[%clk 0:00:17]}  d3 {[%clk 0:01:38]} 40. Bxd3 {[%clk 0:00:17]}  Kc3 {[%clk 0:01:39]} 41. Re2 {[%clk 0:00:16]}  Ra7 {[%clk 0:01:17]} 42. Bf5 {[%clk 0:00:16]}  Kd4 {[%clk 0:01:18]} 43. Rd2+ {[%clk 0:00:15]}  Ke5 {[%clk 0:01:18]} 44. Bg6 {[%clk 0:00:15]}  c3 {[%clk 0:01:15]} 45. Rc2 {[%clk 0:00:15]}  Kd4 {[%clk 0:01:16]} 46. h5 {[%clk 0:00:16]}  Ng4 {[%clk 0:01:11]} 47. Re2 {[%clk 0:00:13]}  Nh6 {[%clk 0:01:03]} 48. Ke1 {[%clk 0:00:12]}  Rb7 {[%clk 0:00:49]} 49. Kd1 {[%clk 0:00:12]}  Rb8 {[%clk 0:00:48]} 50. Kc1 {[%clk 0:00:12]}  Rb6 {[%clk 0:00:45]} 51. Re4+ {[%clk 0:00:12]}  Kd5 {[%clk 0:00:45]} 52. Re3 {[%clk 0:00:13]}  Kd4 {[%clk 0:00:45]} 53. Rd3+ {[%clk 0:00:12]}  Kc4 {[%clk 0:00:45]} 54. Rf3 {[%clk 0:00:12]}  Kd4 {[%clk 0:00:42]} 55. Rf4+ {[%clk 0:00:11]}  Kd5 {[%clk 0:00:41]} 56. a4 {[%clk 0:00:11]}  Rb2 {[%clk 0:00:36]} 57. Rf3 {[%clk 0:00:09]}  Kd4 {[%clk 0:00:36]} 58. Rd3+ {[%clk 0:00:09]}  Kc4 {[%clk 0:00:37]} 59. Rf3 {[%clk 0:00:09]}  Kd4 {[%clk 0:00:37]} 60. Bc2 {[%clk 0:00:09]}  Ra2 {[%clk 0:00:35]} 61. Rf4+ {[%clk 0:00:09]}  Kc5 {[%clk 0:00:26]} 62. Rf6 {[%clk 0:00:08]}  Ng4 {[%clk 0:00:25]} 63. Rf5+ {[%clk 0:00:09]}  Kd6 {[%clk 0:00:24]} 64. a5 {[%clk 0:00:09]}  Ne5 {[%clk 0:00:20]} 65. a6 {[%clk 0:00:08]}  Nc6 {[%clk 0:00:19]} 66. Rf3 {[%clk 0:00:08]}  Nd4 {[%clk 0:00:18]} 67. Rxc3 {[%clk 0:00:08]}  Ne2+ {[%clk 0:00:18]} 68. Kd2 {[%clk 0:00:08]}  Nxc3 {[%clk 0:00:19]} 69. Kxc3 {[%clk 0:00:09]}  Rxa6 {[%clk 0:00:20]} 70. h6 {[%clk 0:00:10]}  Ke5 {[%clk 0:00:19]} 71. h7 {[%clk 0:00:10]}  Ra8 {[%clk 0:00:19]} 72. Kd2 {[%clk 0:00:10]}  Kf6 {[%clk 0:00:20]} 73. Ke3 {[%clk 0:00:11]}  Kg7 {[%clk 0:00:21]} 74. Be4 {[%clk 0:00:11]}  Re8 {[%clk 0:00:21]} 75. Kf4 {[%clk 0:00:11]}  Rf8+ {[%clk 0:00:22]} 76. Ke3 {[%clk 0:00:11]}  Rc8 {[%clk 0:00:21]} 77. f3 {[%clk 0:00:11]}  Rc3+ {[%clk 0:00:22]} 78. Kf4 {[%clk 0:00:12]}  Ra3 {[%clk 0:00:23]} 79. Kg5 {[%clk 0:00:12]}  Ra5+ {[%clk 0:00:23]} 80. Bf5 {[%clk 0:00:12]}  Ra1 {[%clk 0:00:23]} 81. f4 {[%clk 0:00:13]}  Rg1+ {[%clk 0:00:24]} 82. Kh4 {[%clk 0:00:13]}  Rg2 {[%clk 0:00:24]} 83. Be4 {[%clk 0:00:12]}  Rg1 {[%clk 0:00:23]} 84. Kh5 {[%clk 0:00:12]}  Re1 {[%clk 0:00:22]} 85. Bd3 {[%clk 0:00:12]}  Re3 {[%clk 0:00:22]} 86. Bf5 {[%clk 0:00:12]}  Rg3 {[%clk 0:00:22]} 87. Kh4 {[%clk 0:00:12]}  Rg1 {[%clk 0:00:23]} 88. Be4 {[%clk 0:00:13]}  Rd1 {[%clk 0:00:22]} 89. Kg5 {[%clk 0:00:12]}  Rg1+ {[%clk 0:00:21]} 90. Kh4 {[%clk 0:00:10]}  Re1 {[%clk 0:00:18]} 91. Bf5 {[%clk 0:00:10]}  Ra1 {[%clk 0:00:19]} 92. Kg4 {[%clk 0:00:10]}  Rf1 {[%clk 0:00:12]} 93. Bd3 {[%clk 0:00:10]}  Rg1+ {[%clk 0:00:12]} 94. Kf3 {[%clk 0:00:10]}  Rd1 {[%clk 0:00:12]} 95. Ke3 {[%clk 0:00:10]}  Ra1 {[%clk 0:00:11]} 96. Be4 {[%clk 0:00:08]}  Rf1 {[%clk 0:00:10]} 97. Bd3 {[%clk 0:00:08]}  Rxf4 {[%clk 0:00:10]} 98. Kxf4 {[%clk 0:00:08]}  Kh8 {[%clk 0:00:11]} 99. Kg5 {[%clk 0:00:08]}  Kg7 {[%clk 0:00:12]} 100. Kh5 {[%clk 0:00:08]}  Kh8 {[%clk 0:00:13]} 101. Be4 {[%clk 0:00:07]}  Kg7 {[%clk 0:00:14]} 102. Kg5 {[%clk 0:00:07]}  Kh8 {[%clk 0:00:15]} 103. Kh6 {[%clk 0:00:08]} 1/2-1/2


[Site "https://www.chess.com"]

[Event "Titled Tuesday Blitz June 6 Late 2023"]
[White "Andreikin, Dmitry"]
[Black "Annaberdiyev, Meylis"]
[WhiteFideId "4158814"]
[BlackFideId "14000563"]
[WhiteElo "2736"]
[BlackElo "2416"]
[Result "0-1"]
[Round "2"]
[TimeControl "180+2"]
[Date "2023.06.07"]
[WhiteClock "0:00:03"]
[BlackClock "0:00:12"]
[Board "10"]

1. e4 {[%clk 0:02:53]}  c5 {[%clk 0:02:59]} 2. Nc3 {[%clk 0:02:52]}  Nc6 {[%clk 0:02:59]} 3. Nge2 {[%clk 0:02:53]}  g6 {[%clk 0:02:57]} 4. g3 {[%clk 0:02:51]}  Bg7 {[%clk 0:02:57]} 5. Bg2 {[%clk 0:02:52]}  d6 {[%clk 0:02:57]} 6. O-O {[%clk 0:02:52]}  e5 {[%clk 0:02:48]} 7. d3 {[%clk 0:02:52]}  Nge7 {[%clk 0:02:49]} 8. f4 {[%clk 0:02:52]}  O-O {[%clk 0:02:48]} 9. h3 {[%clk 0:02:49]}  Be6 {[%clk 0:02:45]} 10. g4 {[%clk 0:02:46]}  exf4 {[%clk 0:02:43]} 11. Bxf4 {[%clk 0:02:45]}  d5 {[%clk 0:02:35]} 12. Kh1 {[%clk 0:02:45]}  d4 {[%clk 0:02:25]} 13. Nb1 {[%clk 0:02:39]}  Ne5 {[%clk 0:02:25]} 14. Nd2 {[%clk 0:02:39]}  N7c6 {[%clk 0:02:25]} 15. Ng3 {[%clk 0:02:38]}  c4 {[%clk 0:02:22]} 16. Nf3 {[%clk 0:02:30]}  cxd3 {[%clk 0:02:19]} 17. cxd3 {[%clk 0:02:30]}  Qb6 {[%clk 0:02:18]} 18. Ng5 {[%clk 0:02:18]}  Nb4 {[%clk 0:02:14]} 19. Nf5 {[%clk 0:02:06]}  Bxf5 {[%clk 0:01:44]} 20. exf5 {[%clk 0:02:02]}  Nbxd3 {[%clk 0:01:44]} 21. Bg3 {[%clk 0:01:48]}  Nxb2 {[%clk 0:01:22]} 22. Qb3 {[%clk 0:01:39]}  Nbc4 {[%clk 0:01:11]} 23. Rae1 {[%clk 0:01:33]}  Qxb3 {[%clk 0:00:40]} 24. axb3 {[%clk 0:01:32]}  Ne3 {[%clk 0:00:41]} 25. Rg1 {[%clk 0:01:00]}  Rfe8 {[%clk 0:00:29]} 26. Bxb7 {[%clk 0:00:28]}  Rab8 {[%clk 0:00:29]} 27. Bxe5 {[%clk 0:00:26]}  Bxe5 {[%clk 0:00:27]} 28. Bc6 {[%clk 0:00:26]}  Rec8 {[%clk 0:00:25]} 29. Ba4 {[%clk 0:00:25]}  Rc2 {[%clk 0:00:25]} 30. Nf3 {[%clk 0:00:23]}  Bf4 {[%clk 0:00:24]} 31. Rc1 {[%clk 0:00:22]}  d3 {[%clk 0:00:24]} 32. b4 {[%clk 0:00:18]}  Ra2 {[%clk 0:00:23]} 33. Bb3 {[%clk 0:00:16]}  Rb2 {[%clk 0:00:23]} 34. Rc3 {[%clk 0:00:16]}  Rxb4 {[%clk 0:00:23]} 35. f6 {[%clk 0:00:16]}  Rb8 {[%clk 0:00:21]} 36. Rgc1 {[%clk 0:00:08]}  Nc2 {[%clk 0:00:18]} 37. R1xc2 {[%clk 0:00:06]}  dxc2 {[%clk 0:00:17]} 38. Bxc2 {[%clk 0:00:07]}  h6 {[%clk 0:00:16]} 39. Be4 {[%clk 0:00:04]}  Rd8 {[%clk 0:00:16]} 40. Bc2 {[%clk 0:00:03]}  Rb6 {[%clk 0:00:14]} 41. Rc4 {[%clk 0:00:02]}  Rxf6 {[%clk 0:00:14]} 42. Kg2 {[%clk 0:00:02]}  g5 {[%clk 0:00:15]} 43. h4 {[%clk 0:00:02]}  Rb6 {[%clk 0:00:15]} 44. hxg5 {[%clk 0:00:03]}  hxg5 {[%clk 0:00:15]} 45. Rc5 {[%clk 0:00:03]}  Rbd6 {[%clk 0:00:15]} 46. Bf5 {[%clk 0:00:02]}  Rd5 {[%clk 0:00:15]} 47. Rc6 {[%clk 0:00:02]}  R5d6 {[%clk 0:00:15]} 48. Rc5 {[%clk 0:00:02]}  a6 {[%clk 0:00:15]} 49. Be4 {[%clk 0:00:02]}  Kg7 {[%clk 0:00:15]} 50. Nxg5 {[%clk 0:00:02]}  Rd2+ {[%clk 0:00:14]} 51. Kf3 {[%clk 0:00:02]}  Bxg5 {[%clk 0:00:15]} 52. Rxg5+ {[%clk 0:00:03]}  Kf8 {[%clk 0:00:15]} 53. Ra5 {[%clk 0:00:04]}  R8d6 {[%clk 0:00:16]} 54. Kf4 {[%clk 0:00:04]}  R2d4 {[%clk 0:00:16]} 55. Ke5 {[%clk 0:00:03]}  Kg7 {[%clk 0:00:12]} 56. Bf5 {[%clk 0:00:03]}  f6# {[%clk 0:00:12]} 0-1


[Site "https://www.chess.com"]